lending/lending_fUSD_20250122
["ID","MTS","AMOUNT","RATE_DAILY","PERIOD"]
[350012674,1737565839246,-500.0,0.00019451,2]
[350012676,1737565839256,-500.0,0.00019451,2]
[350012678,1737565839265,-500.0,0.00019451,2]
[350012680,1737565839275,-239.31460416,0.00019451,2]
[350012701,1737565839453,-664.44,0.00019451,2]
[350012703,1737565839463,-502.11845604,0.00019451,2]
[350012705,1737565839473,-500.0,0.00019451,2]
[350012707,1737565839482,-500.0,0.00019451,2]
[350012709,1737565839491,-500.0,0.00019451,2]
[350012711,1737565839500,-501.48074197,0.00019451,2]
[350012713,1737565839509,-500.0,0.00019451,2]
[350012715,1737565839518,-500.0,0.00019451,2]
[350012717,1737565839527,-500.0,0.00019451,2]
[350012719,1737565839536,-500.0,0.00019451,2]
[350012721,1737565839546,-499.1770922,0.00019451,2]
[350012723,1737565839555,-500.0,0.00019451,2]
[350012725,1737565839564,-500.0,0.00019451,2]
[350012727,1737565839573,-500.0,0.00019451,2]
[350012729,1737565839583,-500.0,0.00019451,2]
[350012731,1737565839592,-500.0,0.00019451,2]
[350012733,1737565839601,-500.0,0.00019451,2]
[350012735,1737565839610,-645.5,0.00019451,2]
[350012737,1737565839619,-500.0,0.00019451,2]
[350012739,1737565839629,-500.0,0.00019451,2]
[350012741,1737565839639,-593.07,0.00019451,2]
[350012743,1737565839648,-617.32,0.00019451,2]
[350012745,1737565839657,-500.0,0.00019451,2]
[350012747,1737565839667,-500.0,0.00019451,2]
[350012749,1737565839675,-500.0,0.00019451,2]
[350012750,1737565839685,-540.86,0.00019451,2]
[350012753,1737565839694,-500.0,0.00019451,2]
[350012755,1737565839704,-500.0,0.00019451,2]
[350012757,1737565839713,-1287.13,0.00019451,2]
[350012759,1737565839722,-500.0,0.00019451,2]
[350012761,1737565839732,-500.0,0.00019451,2]
[350012762,1737565839741,-500.0,0.00019451,2]
[350012764,1737565839751,-500.0,0.00019451,2]
[350012766,1737565839760,-500.0,0.00019451,2]
[350012768,1737565839769,-864.36,0.00019451,2]
[350012770,1737565839779,-1182.22,0.00019451,2]
[350012772,1737565839790,-500.0,0.00019451,2]
[350012774,1737565839799,-500.0,0.00019451,2]
[350012776,1737565839809,-500.0,0.00019451,2]
[350012778,1737565839819,-500.0,0.00019451,2]
[350012780,1737565839828,-653.23,0.00019451,2]
[350012782,1737565839837,-780.63,0.00019451,2]
[350012784,1737565839847,-1171.15,0.00019451,2]
[350012786,1737565839857,-579.15,0.00019451,2]
[350012788,1737565839866,-500.0,0.00019451,2]
[350012790,1737565839875,-690.65,0.00019451,2]
[350012792,1737565839884,-1138.91,0.00019451,2]
[350012794,1737565839893,-500.0,0.00019451,2]
[350012796,1737565839902,-605.71,0.00019451,2]
[350012798,1737565839912,-500.0,0.00019451,2]
[350012800,1737565839921,-1917.71,0.00019451,2]
[350012802,1737565839931,-752.83,0.00019451,2]
[350012804,1737565839939,-500.0,0.00019451,2]
[350012806,1737565839949,-538.97,0.00019451,2]
[350012808,1737565839958,-1068.08,0.00019451,2]
[350012810,1737565839967,-500.0,0.00019451,2]
[350012812,1737565839976,-500.0,0.00019451,2]
[350012814,1737565839986,-839.47,0.00019451,2]
[350012816,1737565839995,-500.0,0.00019451,2]
[350012818,1737565840004,-500.0,0.00019451,2]
[350012820,1737565840014,-704.85,0.00019451,2]
[350012822,1737565840023,-500.0,0.00019451,2]
[350012824,1737565840031,-500.0,0.00019451,2]
[350012826,1737565840042,-500.0,0.00019451,2]
[350012828,1737565840051,-500.0,0.00019451,2]
[350012830,1737565840060,-500.0,0.00019451,2]
[350012832,1737565840070,-2198.06,0.00019451,2]
[350012834,1737565840079,-500.0,0.00019451,2]
[350012835,1737565840088,-500.0,0.00019451,2]
[350012836,1737565840098,-911.33,0.00019451,2]
[350012837,1737565840107,-621.29,0.00019451,2]
[350012838,1737565840116,-500.0,0.00019451,2]
[350012839,1737565840126,-525.11,0.00019451,2]
[350012840,1737565840135,-500.0,0.00019451,2]
[350012841,1737565840144,-936.18,0.00019451,2]
[350012842,1737565840153,-500.0,0.00019451,2]
[350012843,1737565840163,-500.0,0.00019451,2]
[350012845,1737565840172,-500.0,0.00019451,2]
[350012847,1737565840181,-453.86449827,0.00019451,2]
[350012849,1737565840190,-1059.37,0.00019451,2]
[350012851,1737565840200,-500.0,0.00019451,2]
[350012853,1737565840209,-500.0,0.00019451,2]
[350012855,1737565840218,-516.56,0.00019451,2]
[350012857,1737565840227,-788.3,0.00019451,2]
[350012859,1737565840237,-500.0,0.00019452,2]
[350012861,1737565840250,-500.0,0.00019452,2]
[350012863,1737565840259,-500.0,0.00019452,2]
[350012865,1737565840268,-500.0,0.00019452,2]
[350012867,1737565840277,-490.61603973,0.00019452,2]
[350012869,1737565840287,-500.0,0.00019452,2]
[350012870,1737565840296,-500.0,0.00019452,2]
[350012873,1737565840305,-500.0,0.00019452,2]
[350012875,1737565840315,-500.0,0.00019452,2]
[350012877,1737565840326,-500.0,0.00019452,2]
[350012879,1737565840338,-500.0,0.00019452,2]
[350012880,1737565840347,-500.0,0.00019452,2]
[350012882,1737565840357,-500.0,0.00019452,2]
[350012884,1737565840366,-188.38646,0.00019452,2]
[350012886,1737565840375,-588.68035373,0.00019452,2]
[350012888,1737565840385,-500.0,0.00019452,2]
[350012890,1737565840394,-500.0,0.00019452,2]
[350012892,1737565840404,-500.0,0.00019452,2]
[350012894,1737565840413,-361.70742218,0.00019452,2]
[350012896,1737565840423,-500.0,0.00019452,2]
[350012898,1737565840432,-500.0,0.00019452,2]
[350012900,1737565840442,-649.07,0.00019452,2]
[350012902,1737565840451,-500.0,0.00019452,2]
[350012904,1737565840460,-500.0,0.00019452,2]
[350012906,1737565840469,-500.0,0.00019452,2]
[350012908,1737565840480,-500.0,0.00019452,2]
[350012911,1737565840490,-646.03,0.00019452,2]
[350012913,1737565840499,-500.0,0.00019452,2]
[350012915,1737565840508,-500.0,0.00019452,2]
[350012917,1737565840518,-501.78,0.00019452,2]
[350012919,1737565840527,-614.23,0.00019452,2]
[350012921,1737565840536,-500.0,0.00019452,2]
[350012923,1737565840546,-500.0,0.00019452,2]
[350012925,1737565840555,-500.0,0.00019452,2]
[350012927,1737565840565,-500.0,0.00019452,2]
[350012929,1737565840574,-500.0,0.00019452,2]
[350012931,1737565840584,-500.0,0.00019452,2]
[350012932,1737565840593,-500.0,0.00019452,2]
[350012934,1737565840602,-500.0,0.00019452,2]
[350012936,1737565840611,-500.0,0.00019452,2]
[350012938,1737565840620,-563.17,0.00019452,2]
[350012940,1737565840629,-500.0,0.00019452,2]
[350012942,1737565840638,-500.0,0.00019452,2]
[350012944,1737565840648,-970.84,0.00019452,2]
[350012946,1737565840656,-500.0,0.00019452,2]
[350012948,1737565840666,-833.14,0.00019452,2]
[350012950,1737565840675,-701.87,0.00019452,2]
[350012952,1737565840686,-500.0,0.00019452,2]
[350012954,1737565840695,-500.0,0.00019452,2]
[350012956,1737565840705,-633.32,0.00019452,2]
[350012958,1737565840714,-500.0,0.00019452,2]
[350012960,1737565840724,-500.0,0.00019452,2]
[350012963,1737565840734,-598.7,0.00019452,2]
[350012965,1737565840744,-500.0,0.00019452,2]
[350012967,1737565840754,-500.0,0.00019644,2]
[350012969,1737565840763,-155.37,0.00019654,30]
[350012971,1737565840773,-321.53120913,0.00019724,2]
[350012973,1737565840782,-2046.91,0.00019724,2]
[350012975,1737565840795,-1463.22,0.00019724,2]
[350012976,1737565840804,-618.01,0.00019724,2]
[350012978,1737565840814,-656.98,0.00019724,2]
[350012981,1737565840824,-500.0,0.00019724,2]
[350012983,1737565840834,-657.244566,0.00019724,2]
[350012984,1737565840843,-500.0,0.00019724,2]
[350012986,1737565840853,-500.0,0.00019724,2]
[350012988,1737565840862,-907.71,0.00019724,2]
[350012990,1737565840871,-500.0,0.00019724,2]
[350012992,1737565840880,-460.310681,0.00019724,2]
[350012994,1737565840890,-1063.42,0.00019724,2]
[350012996,1737565840899,-941.71,0.00019724,2]
[350012998,1737565840908,-965.73,0.00019724,2]
[350013000,1737565840917,-1797.28,0.00019724,2]
[350013002,1737565840928,-643.03,0.00019724,2]
[350013004,1737565840937,-974.46,0.00019724,2]
[350013006,1737565840946,-724.33,0.00019724,2]
[350013008,1737565840956,-694.48,0.00019724,2]
[350013010,1737565840965,-673.61,0.00019724,2]
[350013012,1737565840974,-776.58,0.00019724,2]
[350013014,1737565840985,-672.49,0.00019724,2]
[350013016,1737565840994,-500.0,0.00019724,2]
[350013018,1737565841004,-501.16,0.00019724,2]
[350013020,1737565841013,-500.0,0.00019724,2]
[350013022,1737565841022,-500.0,0.00019724,2]
[350013024,1737565841031,-625.11,0.00019724,2]
[350013026,1737565841041,-1105.81,0.00019724,2]
[350013028,1737565841050,-1336.34,0.00019724,2]
[350013030,1737565841059,-726.5,0.00019724,2]
[350013032,1737565841068,-935.45,0.00019724,2]
[350013034,1737565841077,-966.49,0.00019724,2]
[350013036,1737565841088,-1581.88,0.00019724,2]
[350013039,1737565841098,-788.97,0.00019724,2]
[350013041,1737565841107,-500.0,0.00019724,2]
[350013043,1737565841116,-412.86,0.00019724,2]
[350013045,1737565841125,-1825.75,0.00019724,2]
[350013047,1737565841134,-636.92,0.00019724,2]
[350013049,1737565841143,-500.0,0.00019724,2]
[350013051,1737565841152,-681.56,0.00019724,2]
[350013053,1737565841162,-1012.12,0.00019724,2]
[350013055,1737565841172,-666.62,0.00019724,2]
[350013057,1737565841181,-847.19,0.00019724,2]
[350013058,1737565841191,-699.41,0.00019724,2]
[350013060,1737565841200,-626.69,0.00019724,2]
[350013062,1737565841209,-2254.05,0.00019724,2]
[350013064,1737565841218,-500.0,0.00019724,2]
[350013066,1737565841227,-1106.94,0.00019724,2]
[350013068,1737565841237,-1650.73,0.00019724,2]
[350013070,1737565841248,-500.0,0.00019724,2]
[350013072,1737565841258,-1074.08,0.00019724,2]
[350013075,1737565841268,-743.43,0.00019724,2]
[350013077,1737565841277,-500.0,0.00019724,2]
[350013079,1737565841286,-500.0,0.00019724,2]
[350013082,1737565841305,-405.00633781,0.00019725,2]
[350013084,1737565841315,-500.0,0.00019725,2]
[350013086,1737565841325,-500.0,0.00019725,2]
[350013088,1737565841335,-500.0,0.00019725,2]
[350013090,1737565841346,-500.0,0.00019725,2]
[350013092,1737565841355,-509.66,0.00019725,2]
[350013094,1737565841365,-500.0,0.00019725,2]
[350013096,1737565841375,-545.74,0.00019725,2]
[350013098,1737565841384,-500.0,0.00019725,2]
[350013100,1737565841393,-500.0,0.00019725,2]
[350013102,1737565841403,-500.0,0.00019725,2]
[350013104,1737565841412,-500.0,0.00019725,2]
[350013106,1737565841422,-500.0,0.00019725,2]
[350013108,1737565841432,-525.43,0.00019725,2]
[350013111,1737565841444,-505.79,0.00019725,2]
[350013113,1737565841454,-500.0,0.00019725,2]
[350013115,1737565841463,-500.0,0.00019725,2]
[350013116,1737565841472,-353.17796918,0.00019725,2]
[350013118,1737565841481,-500.0,0.00019725,2]
[350013120,1737565841491,-500.0,0.00019725,2]
[350013122,1737565841500,-500.0,0.00019725,2]
[350013124,1737565841509,-500.0,0.00019725,2]
[350013126,1737565841518,-500.0,0.00019725,2]
[350013128,1737565841527,-623.51,0.00019725,2]
[350013130,1737565841537,-546.02,0.00019725,2]
[350013132,1737565841546,-500.0,0.00019725,2]
[350013134,1737565841556,-504.84,0.00019725,2]
[350013136,1737565841565,-500.0,0.00019725,2]
[350013138,1737565841574,-500.0,0.00019725,2]
[350013140,1737565841583,-664.44,0.00019725,2]
[350013142,1737565841593,-500.0,0.00019725,2]
[350013144,1737565841602,-500.0,0.00019725,2]
[350013146,1737565841611,-500.0,0.00019725,2]
[350013148,1737565841620,-500.0,0.00019725,2]
[350013151,1737565841630,-645.5,0.00019725,2]
[350013153,1737565841640,-500.0,0.00019725,2]
[350013155,1737565841649,-500.0,0.00019725,2]
[350013157,1737565841658,-593.07,0.00019725,2]
[350013159,1737565841668,-500.0,0.00019725,2]
[350013161,1737565841677,-1003.48,0.00019725,2]
[350013163,1737565841686,-617.32,0.00019725,2]
[350013165,1737565841695,-500.0,0.00019725,2]
[350013167,1737565841704,-500.0,0.00019725,2]
[350013169,1737565841713,-540.86,0.00019725,2]
[350013171,1737565841722,-500.0,0.00019725,2]
[350013173,1737565841732,-1287.13,0.00019725,2]
[350013175,1737565841741,-500.0,0.00019725,2]
[350013177,1737565841750,-573.95,0.00019725,2]
[350013179,1737565841759,-500.0,0.00019725,2]
[350013181,1737565841769,-500.0,0.00019725,2]
[350013183,1737565841777,-292.75987403,0.00019725,2]
[350013185,1737565841788,-670.74,0.00019725,2]
[350013187,1737565841798,-500.0,0.00019725,2]
[350013189,1737565841807,-864.36,0.00019725,2]
[350013191,1737565841816,-500.0,0.00019725,2]
[350013193,1737565841825,-869.3,0.00019725,2]
[350013195,1737565841834,-1182.22,0.00019725,2]
[350013197,1737565841844,-955.3,0.00019725,2]
[350013199,1737565841853,-254.59650036,0.00019725,2]
[350013201,1737565841862,-500.0,0.00019725,2]
[350013203,1737565841871,-500.0,0.00019725,2]
[350013205,1737565841880,-869.54,0.00019725,2]
[350013207,1737565841889,-286.1,0.00019725,2]
[350013209,1737565841899,-653.23,0.00019725,2]
[350013211,1737565841908,-780.63,0.00019725,2]
[350013213,1737565841918,-1803.15,0.00019725,2]
[350013215,1737565841928,-573.29,0.00019725,2]
[350013217,1737565841937,-1171.15,0.00019725,2]
[350013219,1737565841946,-579.15,0.00019725,2]
[350013221,1737565841955,-3742.26,0.00019725,2]
[350013223,1737565841965,-690.65,0.00019725,2]
[350013225,1737565841974,-159.66,0.00019725,2]
[350013227,1737565841983,-1138.91,0.00019725,2]
[350013229,1737565841992,-690.29,0.00019725,2]
[350013231,1737565842003,-605.71,0.00019725,2]
[350013233,1737565842012,-500.0,0.00019725,2]
[350013235,1737565842022,-1917.71,0.00019725,2]
[350013237,1737565842031,-668.31,0.00019725,2]
[350013239,1737565842042,-752.83,0.00019725,2]
[350013240,1737565842050,-1417.61,0.00019725,2]
[350013241,1737565842060,-500.0,0.00019725,2]
[350013242,1737565842069,-538.97,0.00019725,2]
[350013243,1737565842078,-1068.08,0.00019725,2]
[350013244,1737565842089,-500.0,0.00019725,2]
[350013245,1737565842098,-701.25,0.00019725,2]
[350013246,1737565842107,-500.0,0.00019725,2]
[350013247,1737565842116,-839.47,0.00019725,2]
[350013249,1737565842126,-796.59,0.00019725,2]
[350013251,1737565842135,-704.85,0.00019725,2]
[350013252,1737565842144,-500.0,0.00019725,2]
[350013255,1737565842154,-888.25,0.00019725,2]
[350013256,1737565842164,-500.0,0.00019725,2]
[350013259,1737565842175,-500.0,0.00019725,2]
[350013261,1737565842185,-500.0,0.00019725,2]
[350013263,1737565842195,-2198.06,0.00019725,2]
[350013265,1737565842204,-500.0,0.00019725,2]
[350013267,1737565842215,-500.0,0.00019725,2]
[350013268,1737565842224,-500.0,0.00019725,2]
[350013270,1737565842234,-911.33,0.00019725,2]
[350013273,1737565842244,-1000.0,0.00019725,2]
[350013275,1737565842257,-871.28,0.00019725,2]
[350013276,1737565842267,-621.29,0.00019725,2]
[350013278,1737565842276,-500.0,0.00019725,2]
[350013280,1737565842285,-500.0,0.00019725,2]
[350013283,1737565842297,-525.11,0.00019725,2]
[350013285,1737565842306,-500.0,0.00019725,2]
[350013287,1737565842316,-936.18,0.00019725,2]
[350013289,1737565842326,-1361.84,0.00019725,2]
[350013291,1737565842335,-500.0,0.00019725,2]
[350013292,1737565842344,-1757.48,0.00019725,2]
[350013294,1737565842355,-500.0,0.00019725,2]
[350013296,1737565842364,-1059.37,0.00019725,2]
[350013298,1737565842373,-500.0,0.00019725,2]
[350013300,1737565842383,-500.0,0.00019725,2]
[350013303,1737565842392,-788.3,0.00019725,2]
[350013305,1737565842401,-500.0,0.00019726,2]
[350013308,1737565842410,-500.0,0.00019726,2]
[350013311,1737565842419,-500.0,0.00019726,2]
[350013313,1737565842428,-500.0,0.00019726,2]
[350013315,1737565842438,-500.0,0.00019726,2]
[350013317,1737565842447,-500.0,0.00019726,2]
[350013319,1737565842456,-500.0,0.00019726,2]
[350013321,1737565842466,-500.0,0.00019726,2]
[350013323,1737565842475,-500.0,0.00019726,2]
[350013325,1737565842484,-500.0,0.00019726,2]
[350013327,1737565842493,-260.64,0.00019726,2]
[350013329,1737565842502,-500.0,0.00019726,2]
[350013331,1737565842512,-500.0,0.00019726,2]
[350013333,1737565842521,-372.13553069,0.00019726,2]
[350013335,1737565842530,-500.0,0.00019726,2]
[350013338,1737565842540,-500.0,0.00019726,2]
[350013341,1737565842550,-649.07,0.00019726,2]
[350013344,1737565842560,-500.0,0.00019726,2]
[350013348,1737565842570,-273.74747251,0.00019726,2]
[350013351,1737565842580,-500.0,0.00019726,2]
[350013353,1737565842589,-51.88081505,0.00019726,2]
[350013375,1737565842794,-141.04786936,0.00019726,2]
[350013377,1737565842804,-646.03,0.00019726,2]
[350013379,1737565842813,-500.0,0.00019726,2]
[350013381,1737565842822,-500.0,0.00019726,2]
[350013383,1737565842832,-501.78,0.00019726,2]
[350013385,1737565842841,-614.23,0.00019726,2]
[350013387,1737565842850,-500.0,0.00019726,2]
[350013389,1737565842861,-500.0,0.00019726,2]
[350013391,1737565842871,-500.0,0.00019726,2]
[350013394,1737565842881,-500.0,0.00019726,2]
[350013395,1737565842890,-500.0,0.00019726,2]
[350013396,1737565842899,-500.0,0.00019726,2]
[350013398,1737565842909,-319.09538964,0.00019726,2]
[350013416,1737565843089,-525.91613554,0.00019724,2]
[350013423,1737565843251,-1.00818275,0.00019724,2]
[350013424,1737565843261,-180.90461036,0.00019726,2]
[350013425,1737565843270,-500.0,0.00019726,2]
[350013426,1737565843280,-563.17,0.00019726,2]
[350013427,1737565843292,-500.0,0.00019726,2]
[350013428,1737565843303,-199.58204583,0.00019726,2]
[350013429,1737565843312,-970.84,0.00019726,2]
[350013430,1737565843321,-500.0,0.00019726,2]
[350013431,1737565843331,-833.14,0.00019726,2]
[350013432,1737565843341,-701.87,0.00019726,2]
[350013433,1737565843350,-500.0,0.00019726,2]
[350013435,1737565843359,-500.0,0.00019726,2]
[350013437,1737565843368,-633.32,0.00019726,2]
[350013439,1737565843380,-500.0,0.00019726,2]
[350013441,1737565843390,-500.0,0.00019726,2]
[350013443,1737565843400,-324.38887406,0.00019726,2]
[350013444,1737565843415,-274.31112594,0.00019726,2]
[350013445,1737565843427,-328.9890659,0.00019726,2]
[350013446,1737565843447,-171.0109341,0.00019726,2]
[350013447,1737565843457,-521.066895,0.00019764,2]
[350013448,1737565843467,-451.90785452,0.000199,2]
[350013449,1737565843476,-451.90785432,0.00019969,2]
[350013450,1737565843486,-101.93235649,0.00019998,2]
[350013451,1737565843498,-1944.97764351,0.00019998,2]
[350013452,1737565843509,-1463.22,0.00019998,2]
[350013453,1737565843519,-618.01,0.00019998,2]
[350013454,1737565843530,-656.98,0.00019998,2]
[350013455,1737565843542,-500.0,0.00019998,2]
[350013457,1737565843551,-463.23717434,0.00019998,2]
[350013459,1737565843565,-194.00739166,0.00019998,2]
[350013461,1737565843576,-500.0,0.00019998,2]
[350013463,1737565843586,-500.0,0.00019998,2]
[350013464,1737565843595,-652.01053756,0.00019998,2]
[350013467,1737565843607,-255.69946244,0.00019998,2]
[350013469,1737565843617,-500.0,0.00019998,2]
[350013470,1737565843627,-460.310681,0.00019998,2]
[350013471,1737565843636,-866.43985656,0.00019998,2]
[350013472,1737565843648,-196.98014344,0.00019998,2]
[350013473,1737565843660,-316.44633656,0.00019998,2]
[350013474,1737565843682,-625.26366344,0.00019998,2]
[350013475,1737565843693,-965.73,0.00019998,2]
[350013476,1737565843703,-1797.28,0.00019998,2]
[350013477,1737565843713,-643.03,0.00019998,2]
[350013478,1737565843724,-974.46,0.00019998,2]
[350013479,1737565843736,-724.33,0.00019998,2]
[350013480,1737565843747,-694.48,0.00019998,2]
[350013481,1737565843757,-673.61,0.00019998,2]
[350013482,1737565843769,-776.58,0.00019998,2]
[350013483,1737565843780,-672.49,0.00019998,2]
[350013484,1737565843794,-500.0,0.00019998,2]
[350013485,1737565843804,-501.16,0.00019998,2]
[350013486,1737565843815,-500.0,0.00019998,2]
[350013487,1737565843825,-500.0,0.00019998,2]
[350013488,1737565843836,-625.11,0.00019998,2]
[350013489,1737565843847,-1105.81,0.00019998,2]
[350013490,1737565843858,-215.09167565,0.00019998,2]
[350013491,1737565844036,-500.0,0.0001945,2]
[350013492,1737565844049,-500.0,0.0001945,2]
[350013493,1737565844060,-41.3,0.00019724,2]
[350013494,1737565844072,-458.7,0.00019724,2]
[350013495,1737565844082,-1121.24832435,0.00019998,2]
[350013496,1737565844093,-726.5,0.00019998,2]
[350013497,1737565844105,-935.45,0.00019998,2]
[350013498,1737565844116,-966.49,0.00019998,2]
[350013499,1737565844129,-1581.88,0.00019998,2]
[350013500,1737565844139,-788.97,0.00019998,2]
[350013501,1737565844150,-1825.75,0.00019998,2]
[350013502,1737565844160,-636.92,0.00019998,2]
[350013503,1737565844171,-500.0,0.00019998,2]
[350013504,1737565844182,-681.56,0.00019998,2]
[350013505,1737565844192,-200.75447565,0.00019998,2]
[350013506,1737565844275,-811.36552435,0.00019998,2]
[350013507,1737565844285,-666.62,0.00019998,2]
[350013508,1737565844298,-847.19,0.00019998,2]
[350013509,1737565844308,-699.41,0.00019998,2]
[350013510,1737565844320,-626.69,0.00019998,2]
[350013511,1737565844332,-2254.05,0.00019998,2]
[350013512,1737565844343,-500.0,0.00019998,2]
[350013513,1737565844353,-344.67447565,0.00019998,2]
[350013514,1737565844366,-762.26552435,0.00019998,2]
[350013515,1737565844376,-505.23447565,0.00019998,2]
[350013516,1737565844390,-1145.49552435,0.00019998,2]
[350013517,1737565844400,-500.0,0.00019998,2]
[350013518,1737565844411,-1074.08,0.00019998,2]
[350013519,1737565844420,-743.43,0.00019998,2]
[350013520,1737565844431,-500.0,0.00019998,2]
[350013521,1737565844442,-500.0,0.00019998,2]
[350013522,1737565844451,-339.41,0.00019998,2]
[350013523,1737565844462,-500.0,0.00019999,2]
[350013524,1737565844473,-500.0,0.00019999,2]
[350013525,1737565844484,-500.0,0.00019999,2]
[350013526,1737565844494,-500.0,0.00019999,2]
[350013527,1737565844505,-509.66,0.00019999,2]
[350013528,1737565844514,-500.0,0.00019999,2]
[350013529,1737565844525,-545.74,0.00019999,2]
[350013530,1737565844539,-500.0,0.00019999,2]
[350013531,1737565844552,-463.46660821,0.00019999,2]
[350013532,1737565844563,-500.0,0.00019999,2]
[350013533,1737565844573,-500.0,0.00019999,2]
[350013534,1737565844584,-525.43,0.00019999,2]
[350013535,1737565844595,-505.79,0.00019999,2]
[350013536,1737565844607,-287.12,0.00019999,2]
[350013537,1737565844617,-500.0,0.00019999,2]
[350013538,1737565844628,-500.0,0.00019999,2]
[350013539,1737565844638,-500.0,0.00019999,2]
[350013540,1737565844649,-500.0,0.00019999,2]
[350013541,1737565844659,-500.0,0.00019999,2]
[350013542,1737565844669,-623.51,0.00019999,2]
[350013543,1737565844679,-546.02,0.00019999,2]
[350013544,1737565844690,-500.0,0.00019999,2]
[350013545,1737565844701,-504.84,0.00019999,2]
[350013546,1737565844711,-177.42,0.00019999,2]
[350013547,1737565844721,-500.0,0.00019999,2]
[350013548,1737565844732,-664.44,0.00019999,2]
[350013549,1737565844742,-500.0,0.00019999,2]
[350013550,1737565844753,-500.0,0.00019999,2]
[350013551,1737565844763,-417.61590834,0.00019999,2]
[350013552,1737565844774,-500.0,0.00019999,2]
[350013553,1737565844784,-645.5,0.00019999,2]
[350013554,1737565844795,-500.0,0.00019999,2]
[350013555,1737565844807,-500.0,0.00019999,2]
[350013556,1737565844817,-593.07,0.00019999,2]
[350013557,1737565844827,-500.0,0.00019999,2]
[350013558,1737565844837,-1003.48,0.00019999,2]
[350013559,1737565844847,-617.32,0.00019999,2]
[350013560,1737565844857,-500.0,0.00019999,2]
[350013561,1737565844868,-500.0,0.00019999,2]
[350013562,1737565844879,-540.86,0.00019999,2]
[350013563,1737565844889,-500.0,0.00019999,2]
[350013564,1737565844900,-1287.13,0.00019999,2]
[350013565,1737565844911,-573.95,0.00019999,2]
[350013566,1737565844921,-500.0,0.00019999,2]
[350013567,1737565844933,-500.0,0.00019999,2]
[350013568,1737565844943,-670.74,0.00019999,2]
[350013569,1737565844954,-500.0,0.00019999,2]
[350013570,1737565844964,-864.36,0.00019999,2]
[350013571,1737565844975,-31.3219591,0.00019999,2]
[350013572,1737565844988,-468.6780409,0.00019999,2]
[350013573,1737565844999,-869.3,0.00019999,2]
[350013574,1737565845011,-1182.22,0.00019999,2]
[350013575,1737565845022,-955.3,0.00019999,2]
[350013576,1737565845032,-500.0,0.00019999,2]
[350013577,1737565845043,-500.0,0.00019999,2]
[350013578,1737565845055,-869.54,0.00019999,2]
[350013579,1737565845066,-653.23,0.00019999,2]
[350013580,1737565845076,-780.63,0.00019999,2]
[350013581,1737565845086,-1803.15,0.00019999,2]
[350013582,1737565845098,-573.29,0.00019999,2]
[350013583,1737565845108,-1171.15,0.00019999,2]
[350013584,1737565845120,-579.15,0.00019999,2]
[350013585,1737565845130,-3742.26,0.00019999,2]